fUST/lending_fUST_20250120
["ID","MTS","AMOUNT","RATE_DAILY","PERIOD"]
[349599347,1737322248468,-500.0,0.00022328,3]
[349599349,1737322248477,-605.05403217,0.00022328,3]
[349599351,1737322248487,-500.0,0.00022328,3]
[349599353,1737322248497,-500.0,0.00022328,3]
[349599355,1737322248506,-500.0,0.00022328,3]
[349599357,1737322248517,-500.0,0.00022328,3]
[349599359,1737322248527,-500.0,0.00022328,3]
[349599361,1737322248536,-500.0,0.00022328,3]
[349599363,1737322248546,-500.0,0.00022328,3]
[349599365,1737322248557,-500.0,0.00022328,2]
[349599367,1737322248567,-500.0,0.00022328,3]
[349599369,1737322248578,-500.0,0.00022328,3]
[349599371,1737322248588,-294.62085274,0.00022328,3]
[349599373,1737322248598,-500.0,0.00022328,3]
[349599375,1737322248611,-500.0,0.00022328,3]
[349599378,1737322248626,-500.0,0.00022328,3]
[349599379,1737322248636,-2404.1121748,0.00022328,3]
[349599392,1737322248746,-2959.95513365,0.00022328,3]
[349599435,1737322249167,-500.0,0.00021917,3]
[349599437,1737322249177,-500.0,0.00021917,3]
[349599439,1737322249188,-151.0,0.00021989,7]
[349599441,1737322249197,-151.0,0.0002199,7]
[349599443,1737322249209,-151.0,0.00022,7]
[349599445,1737322249219,-301.39413098,0.00022053,2]
[349599447,1737322249229,-151.0,0.00022054,7]
[349599449,1737322249239,-151.0,0.00022054,7]
[349599451,1737322249248,-151.0,0.00022054,7]
[349599453,1737322249258,-151.0,0.00022054,7]
[349599455,1737322249268,-151.0,0.00022054,7]
[349599457,1737322249278,-152.0,0.00022175,2]
[349599459,1737322249287,-500.0,0.00022328,3]
[349599461,1737322249297,-500.0,0.00022328,3]
[349599463,1737322249307,-521.86,0.00022328,3]
[349599465,1737322249318,-500.0,0.00022328,3]
[349599467,1737322249328,-330.02579765,0.00022328,3]
[349599469,1737322249338,-500.0,0.00022328,3]
[349599471,1737322249348,-500.0,0.00022328,3]
[349599473,1737322249359,-1430.67,0.00022328,3]
[349599475,1737322249372,-500.0,0.00022328,3]
[349599478,1737322249384,-500.0,0.00022328,3]
[349599480,1737322249397,-501.1,0.00022328,3]
[349599482,1737322249407,-500.0,0.00022328,3]
[349599484,1737322249418,-500.0,0.00022328,3]
[349599486,1737322249428,-500.0,0.00022328,3]
[349599488,1737322249438,-500.0,0.00022328,3]
[349599490,1737322249447,-500.0,0.00022328,3]
[349599492,1737322249458,-500.0,0.00022328,3]
[349599494,1737322249468,-500.0,0.00022328,3]
[349599505,1737322249570,-500.0,0.00022328,3]
[349599507,1737322249580,-500.0,0.00022328,3]
[349599509,1737322249590,-500.0,0.00022328,3]
[349599511,1737322249600,-3452.47,0.00022328,3]
[349599513,1737322249610,-500.0,0.00022328,3]
[349599515,1737322249625,-500.0,0.00022328,3]
[349599517,1737322249639,-1896.27,0.00022328,3]
[349599519,1737322249649,-500.0,0.00022328,3]
[349599521,1737322249659,-500.0,0.00022328,3]
[349599523,1737322249668,-500.0,0.00022328,3]
[349599525,1737322249678,-6775.71,0.00022328,3]
[349599527,1737322249689,-711.76,0.00022328,3]
[349599529,1737322249699,-500.0,0.00022328,3]
[349599531,1737322249709,-521.40908399,0.00022328,3]
[349599533,1737322249720,-500.0,0.00022328,3]
[349599536,1737322249730,-500.0,0.00022328,3]
[349599538,1737322249740,-500.0,0.00022328,3]
[349599539,1737322249750,-516.73565525,0.00022328,3]
[349599541,1737322249759,-1219.06,0.00022328,3]
[349599544,1737322249769,-500.0,0.00022328,3]
[349599546,1737322249779,-531.15,0.00022328,3]
[349599548,1737322249789,-500.0,0.00022328,3]
[349599550,1737322249798,-500.0,0.00022328,3]
[349599552,1737322249808,-500.0,0.00022328,3]
[349599554,1737322249818,-486.59938556,0.00022328,3]
[349599556,1737322249828,-500.0,0.00022328,3]
[349599558,1737322249837,-566.86,0.00022328,3]
[349599560,1737322249846,-500.0,0.00022328,3]
[349599562,1737322249856,-500.0,0.00022328,3]
[349599563,1737322249866,-500.0,0.00022328,3]
[349599565,1737322249882,-500.0,0.00022328,3]
[349599568,1737322249894,-500.0,0.00022328,3]
[349599569,1737322249904,-500.0,0.00022328,3]
[349599572,1737322249915,-500.0,0.00022328,3]
[349599574,1737322249929,-453.55021917,0.00022328,3]
[349599576,1737322249939,-824.53,0.00022328,3]
[349599578,1737322249949,-1046.84,0.00022328,3]
[349599580,1737322249958,-500.0,0.00022328,3]
[349599582,1737322249970,-554.86318667,0.00022328,3]
[349599584,1737322249980,-530.1,0.00022328,3]
[349599586,1737322249990,-500.0,0.00022328,3]
[349599588,1737322250004,-500.0,0.00022328,3]
[349599590,1737322250016,-814.54,0.00022328,3]
[349599592,1737322250028,-1109.47,0.00022328,3]
[349599594,1737322250038,-500.0,0.00022328,3]
[349599596,1737322250049,-2027.2,0.00022328,3]
[349599598,1737322250060,-500.0,0.00022328,3]
[349599600,1737322250071,-500.0,0.00022328,3]
[349599602,1737322250081,-604.45,0.00022328,3]
[349599604,1737322250093,-500.0,0.00022328,3]
[349599606,1737322250104,-500.0,0.00022328,3]
[349599608,1737322250116,-732.28,0.00022328,3]
[349599610,1737322250136,-2722.97,0.00022328,3]
[349599612,1737322250148,-500.0,0.00022328,3]
[349599613,1737322250158,-2175.12,0.00022328,3]
[349599615,1737322250170,-500.0,0.00022328,3]
[349599617,1737322250181,-500.0,0.00022328,3]
[349599619,1737322250191,-1176.33,0.00022328,3]
[349599621,1737322250204,-500.0,0.00022328,3]
[349599623,1737322250215,-500.0,0.00022328,3]
[349599625,1737322250226,-500.0,0.00022328,3]
[349599627,1737322250236,-2577.0,0.0002234,4]
[349599629,1737322250245,-158.24797098,0.00022365,2]
[349599631,1737322250254,-155.96474026,0.00022373,2]
[349599633,1737322250264,-503.72923844,0.00022373,2]
[349599635,1737322250274,-500.000001,0.00022398,2]
[349599637,1737322250284,-472.0,0.00022399,2]
[349599639,1737322250294,-1436.0,0.000224,2]
[349599641,1737322250304,-151.0,0.000224,6]
[349599643,1737322250316,-151.0,0.000224,8]
[349599645,1737322250326,-151.0,0.000224,10]
[349599647,1737322250336,-151.0,0.000224,9]
[349599649,1737322250347,-4372.52533849,0.00022417,3]
[349599651,1737322250357,-500.0,0.00022465,3]
[349599653,1737322250367,-500.0,0.00022465,3]
[349599655,1737322250382,-500.0,0.00022465,3]
[349599657,1737322250391,-500.0,0.00022465,3]
[349599659,1737322250401,-500.0,0.00022465,3]
[349599661,1737322250411,-500.0,0.00022465,3]
[349599663,1737322250421,-500.0,0.00022465,3]
[349599665,1737322250431,-500.0,0.00022465,3]
[349599667,1737322250441,-500.0,0.00022465,3]
[349599669,1737322250451,-500.0,0.00022465,3]
[349599671,1737322250460,-500.0,0.00022465,3]
[349599673,1737322250470,-500.0,0.00022465,3]
[349599675,1737322250480,-514.64,0.00022465,3]
[349599677,1737322250489,-500.0,0.00022465,3]
[349599679,1737322250499,-500.0,0.00022465,3]
[349599681,1737322250511,-514.61,0.00022465,3]
[349599683,1737322250520,-500.0,0.00022465,3]
[349599685,1737322250530,-500.0,0.00022465,3]
[349599687,1737322250539,-500.0,0.00022465,3]
[349599689,1737322250549,-500.0,0.00022465,3]
[349599691,1737322250559,-500.0,0.00022465,3]
[349599693,1737322250568,-500.0,0.00022465,3]
[349599695,1737322250577,-500.0,0.00022465,3]
[349599697,1737322250587,-500.0,0.00022465,3]
[349599699,1737322250597,-500.0,0.00022465,3]
[349599701,1737322250606,-500.0,0.00022465,3]
[349599703,1737322250616,-174.16,0.00022465,3]
[349599705,1737322250630,-500.0,0.00022465,3]
[349599707,1737322250639,-500.0,0.00022465,3]
[349599709,1737322250649,-500.0,0.00022465,3]
[349599711,1737322250659,-213.75687653,0.00022465,3]
[349599713,1737322250668,-500.0,0.00022465,3]
[349599715,1737322250677,-500.0,0.00022465,3]
[349599717,1737322250687,-500.0,0.00022465,3]
[349599719,1737322250697,-500.0,0.00022465,3]
[349599721,1737322250706,-500.0,0.00022465,3]
[349599723,1737322250715,-500.0,0.00022465,3]
[349599724,1737322250724,-500.0,0.00022465,3]
[349599725,1737322250733,-500.0,0.00022465,3]
[349599726,1737322250743,-500.0,0.00022465,3]
[349599727,1737322250753,-500.0,0.00022465,3]
[349599728,1737322250827,-500.0,0.00022465,3]
[349599729,1737322250837,-500.0,0.00022465,3]
[349599730,1737322250847,-500.0,0.00022465,3]
[349599731,1737322250857,-500.0,0.00022465,3]
[349599733,1737322250867,-500.0,0.00022465,3]
[349599735,1737322250881,-500.0,0.00022465,3]
[349599737,1737322250891,-500.0,0.00022465,3]
[349599739,1737322250901,-500.0,0.00022465,3]
[349599741,1737322250911,-500.0,0.00022465,3]
[349599743,1737322250922,-500.0,0.00022465,3]
[349599745,1737322250931,-500.0,0.00022465,3]
[349599747,1737322250942,-500.0,0.00022465,3]
[349599749,1737322250952,-500.0,0.00022465,2]
[349599751,1737322250970,-500.0,0.00022465,3]
[349599753,1737322250980,-500.0,0.00022465,3]
[349599755,1737322250990,-500.0,0.00022465,3]
[349599757,1737322251000,-503.02061473,0.00022465,3]
[349599759,1737322251010,-500.0,0.00022465,3]
[349599761,1737322251020,-500.0,0.00022465,3]
[349599763,1737322251030,-521.86,0.00022465,3]
[349599766,1737322251049,-500.0,0.00022465,3]
[349599768,1737322251061,-500.0,0.00022465,3]
[349599770,1737322251071,-500.0,0.00022465,3]
[349599772,1737322251084,-1430.67,0.00022465,3]
[349599775,1737322251095,-204.29,0.00022465,3]
[349599777,1737322251106,-500.0,0.00022465,3]
[349599779,1737322251117,-501.1,0.00022465,3]
[349599781,1737322251134,-500.0,0.00022465,3]
[349599783,1737322251145,-500.0,0.00022465,3]
[349599785,1737322251157,-500.0,0.00022465,3]
[349599787,1737322251169,-500.0,0.00022465,3]
[349599789,1737322251181,-500.0,0.00022465,3]
[349599791,1737322251192,-500.0,0.00022465,3]
[349599793,1737322251204,-500.0,0.00022465,3]
[349599795,1737322251217,-500.0,0.00022465,3]
[349599797,1737322251228,-500.0,0.00022465,3]
[349599799,1737322251239,-500.0,0.00022465,3]
[349599801,1737322251250,-3452.47,0.00022465,3]
[349599803,1737322251261,-500.0,0.00022465,3]
[349599805,1737322251272,-500.0,0.00022465,3]
[349599807,1737322251282,-1896.27,0.00022465,3]
[349599809,1737322251292,-500.0,0.00022465,3]
[349599812,1737322251303,-500.0,0.00022465,3]
[349599814,1737322251313,-500.0,0.00022465,3]
[349599816,1737322251323,-6775.71,0.00022465,3]
[349599818,1737322251334,-711.76,0.00022465,3]
[349599820,1737322251344,-500.0,0.00022465,3]
[349599822,1737322251354,-500.0,0.00022465,3]
[349599824,1737322251364,-500.0,0.00022465,3]
[349599826,1737322251376,-500.0,0.00022465,3]
[349599828,1737322251386,-1219.06,0.00022465,3]
[349599830,1737322251396,-500.0,0.00022465,3]
[349599832,1737322251406,-531.15,0.00022465,3]
[349599834,1737322251416,-500.0,0.00022465,3]
[349599836,1737322251426,-414.4185829,0.00022465,3]
[349599838,1737322251436,-500.0,0.00022465,3]
[349599840,1737322251446,-500.0,0.00022465,3]
[349599842,1737322251456,-566.86,0.00022465,3]
[349599844,1737322251465,-526.48,0.00022465,3]
[349599846,1737322251475,-500.0,0.00022465,3]
[349599848,1737322251484,-507.11,0.00022465,3]
[349599850,1737322251494,-500.0,0.00022465,3]
[349599852,1737322251504,-500.0,0.00022465,3]
[349599854,1737322251513,-500.0,0.00022465,3]
[349599856,1737322251523,-500.0,0.00022465,3]
[349599858,1737322251533,-824.53,0.00022465,3]
[349599860,1737322251546,-1046.84,0.00022465,3]
[349599862,1737322251556,-500.0,0.00022465,3]
[349599864,1737322251567,-530.1,0.00022465,3]
[349599866,1737322251578,-53.42693894,0.00022465,3]
[349599872,1737322251633,-446.57306106,0.00022465,3]
[349599874,1737322251643,-500.0,0.00022465,3]
[349599876,1737322251653,-814.54,0.00022465,3]
[349599878,1737322251663,-1109.47,0.00022465,3]
[349599880,1737322251674,-500.0,0.00022465,3]
[349599882,1737322251684,-2027.2,0.00022465,3]
[349599885,1737322251694,-500.0,0.00022465,3]
[349599887,1737322251703,-500.0,0.00022465,3]
[349599889,1737322251713,-604.45,0.00022465,3]
[349599891,1737322251723,-500.0,0.00022465,3]
[349599893,1737322251733,-500.0,0.00022465,3]
[349599895,1737322251742,-732.28,0.00022465,3]
[349599897,1737322251752,-2722.97,0.00022465,3]
[349599899,1737322251762,-500.0,0.00022465,3]
[349599901,1737322251773,-2175.12,0.00022465,3]
[349599903,1737322251784,-500.0,0.00022465,3]
[349599905,1737322251794,-500.0,0.00022465,3]
[349599907,1737322251805,-1176.33,0.00022465,3]
[349599909,1737322251815,-500.0,0.00022465,3]
[349599911,1737322251825,-500.0,0.00022465,3]
[349599913,1737322251836,-500.0,0.00022465,3]
[349599915,1737322251846,-151.0,0.000225,5]
[349599917,1737322251855,-151.0,0.000225,7]
[349599919,1737322251865,-497.67373719,0.00022521,2]
[349599921,1737322251879,-4372.52533849,0.00022521,3]
[349599923,1737322251889,-500.0,0.00022602,3]
[349599925,1737322251899,-500.0,0.00022602,3]
[349599927,1737322251908,-500.0,0.00022602,3]
[349599929,1737322251918,-500.0,0.00022602,3]
[349599931,1737322251930,-459.53486951,0.00022602,3]
[349599933,1737322251940,-500.0,0.00022602,3]
[349599942,1737322252028,-500.0,0.00022602,3]
[349599944,1737322252039,-500.0,0.00022602,3]
[349599946,1737322252049,-500.0,0.00022602,3]
[349599949,1737322252062,-500.0,0.00022602,3]
[349599951,1737322252072,-500.0,0.00022602,3]
[349599952,1737322252082,-514.64,0.00022602,3]
[349599954,1737322252092,-500.0,0.00022602,3]
[349599957,1737322252102,-641.72935191,0.00022602,3]
[349599958,1737322252112,-514.61,0.00022602,3]
[349599961,1737322252126,-500.0,0.00022602,3]
[349599963,1737322252138,-500.0,0.00022602,3]
[349599965,1737322252148,-500.0,0.00022602,3]
[349599967,1737322252157,-500.0,0.00022602,3]
[349599969,1737322252166,-500.0,0.00022602,3]
[349599971,1737322252176,-500.0,0.00022602,3]
[349599973,1737322252185,-500.0,0.00022602,3]
[349599975,1737322252197,-500.0,0.00022602,3]
[349599977,1737322252207,-500.0,0.00022602,3]
[349599979,1737322252216,-500.0,0.00022602,3]
[349599981,1737322252226,-500.0,0.00022602,3]
[349599983,1737322252235,-500.0,0.00022602,3]
[349599985,1737322252245,-497.56888914,0.00022602,3]
[349599987,1737322252255,-500.0,0.00022602,3]
[349599989,1737322252264,-500.0,0.00022602,3]
[349599991,1737322252274,-500.0,0.00022602,3]
[349599993,1737322252283,-500.0,0.00022602,3]
[349599995,1737322252293,-473.02019755,0.00022602,3]
[349599997,1737322252302,-500.0,0.00022602,3]
[349599999,1737322252312,-500.0,0.00022602,3]
[349600001,1737322252322,-500.0,0.00022602,3]
[349600003,1737322252332,-500.0,0.00022602,3]
[349600005,1737322252341,-500.0,0.00022602,3]
[349600007,1737322252351,-500.0,0.00022602,3]
[349600009,1737322252361,-500.0,0.00022602,3]
[349600011,1737322252374,-500.0,0.00022602,3]
[349600013,1737322252382,-500.0,0.00022602,3]
[349600015,1737322252392,-500.0,0.00022602,3]
[349600016,1737322252401,-500.0,0.00022602,3]
[349600018,1737322252411,-505.37133121,0.00022602,3]
[349600020,1737322252419,-611.28703007,0.00022602,3]
[349600022,1737322252428,-500.0,0.00022602,3]
[349600024,1737322252438,-500.0,0.00022602,3]
[349600026,1737322252448,-500.0,0.00022602,3]
[349600028,1737322252457,-500.0,0.00022602,2]
[349600030,1737322252466,-500.0,0.00022602,3]
[349600032,1737322252476,-500.0,0.00022602,3]
[349600034,1737322252485,-500.0,0.00022602,3]
[349600036,1737322252495,-500.0,0.00022602,3]
[349600038,1737322252504,-500.0,0.00022602,3]
[349600040,1737322252513,-521.86,0.00022602,3]
[349600042,1737322252522,-500.0,0.00022602,3]
[349600044,1737322252531,-500.0,0.00022602,3]
[349600046,1737322252540,-500.0,0.00022602,3]
[349600048,1737322252550,-1430.67,0.00022602,3]
[349600050,1737322252560,-500.0,0.00022602,3]
[349600052,1737322252569,-501.1,0.00022602,3]
[349600054,1737322252579,-500.0,0.00022602,3]
[349600056,1737322252589,-500.0,0.00022602,3]
[349600058,1737322252599,-500.0,0.00022602,3]
[349600060,1737322252609,-500.0,0.00022602,3]
[349600062,1737322252621,-500.0,0.00022602,3]
[349600064,1737322252634,-500.0,0.00022602,3]
[349600066,1737322252644,-500.0,0.00022602,3]
[349600068,1737322252655,-500.0,0.00022602,3]
[349600070,1737322252665,-500.0,0.00022602,3]
[349600072,1737322252675,-500.0,0.00022602,3]
[349600074,1737322252685,-3452.47,0.00022602,3]
[349600076,1737322252696,-500.0,0.00022602,3]
[349600078,1737322252706,-500.0,0.00022602,3]
[349600080,1737322252716,-1896.27,0.00022602,3]
[349600082,1737322252726,-500.0,0.00022602,3]
[349600084,1737322252736,-500.0,0.00022602,3]
[349600086,1737322252746,-500.0,0.00022602,3]
[349600089,1737322252757,-6775.71,0.00022602,3]
[349600091,1737322252767,-711.76,0.00022602,3]
[349600093,1737322252777,-500.0,0.00022602,3]
[349600095,1737322252787,-500.0,0.00022602,3]
[349600097,1737322252798,-500.0,0.00022602,3]
[349600098,1737322252808,-500.0,0.00022602,3]
[349600101,1737322252819,-1219.06,0.00022602,3]
[349600103,1737322252830,-500.0,0.00022602,3]
[349600105,1737322252841,-531.15,0.00022602,3]
[349600107,1737322252853,-500.0,0.00022602,3]
[349600109,1737322252864,-500.0,0.00022602,3]
[349600111,1737322252880,-500.0,0.00022602,3]
[349600113,1737322252891,-566.86,0.00022602,3]
[349600115,1737322252901,-500.0,0.00022602,3]
[349600117,1737322252912,-500.0,0.00022602,3]
[349600119,1737322252928,-500.0,0.00022602,3]
[349600121,1737322252938,-500.0,0.00022602,3]
[349600123,1737322252948,-500.0,0.00022602,3]
[349600125,1737322252958,-824.53,0.00022602,3]
[349600127,1737322252970,-1046.84,0.00022602,3]
[349600129,1737322252979,-500.0,0.00022602,3]
[349600131,1737322252989,-530.1,0.00022602,3]
[349600133,1737322253000,-500.0,0.00022602,3]
[349600140,1737322253010,-500.0,0.00022602,3]
[349600142,1737322253079,-814.54,0.00022602,3]
[349600144,1737322253091,-1109.47,0.00022602,3]
[349600146,1737322253102,-500.0,0.00022602,3]
[349600148,1737322253113,-2027.2,0.00022602,3]
[349600150,1737322253129,-500.0,0.00022602,3]
[349600152,1737322253140,-500.0,0.00022602,3]
[349600154,1737322253151,-604.45,0.00022602,3]
[349600156,1737322253162,-500.0,0.00022602,3]
[349600158,1737322253172,-500.0,0.00022602,3]
[349600160,1737322253182,-732.28,0.00022602,3]
[349600162,1737322253191,-2722.97,0.00022602,3]
[349600164,1737322253202,-500.0,0.00022602,3]
[349600166,1737322253212,-2175.12,0.00022602,3]
[349600168,1737322253222,-519.93,0.00022602,3]
[349600170,1737322253232,-500.0,0.00022602,3]
[349600172,1737322253243,-1176.33,0.00022602,3]
[349600174,1737322253254,-500.0,0.00022602,3]
[349600176,1737322253265,-500.0,0.00022602,3]
[349600178,1737322253275,-500.0,0.00022602,3]
[349600180,1737322253285,-985.66478432,0.00022621,2]
[349600182,1737322253294,-603.01419352,0.00022621,2]
[349600185,1737322253304,-500.0,0.00022621,2]
[349600187,1737322253314,-4372.52533849,0.00022624,3]
[349600189,1737322253323,-153.71,0.00022645,2]
[349600191,1737322253333,-620.0,0.000227,2]
[349600193,1737322253342,-1000.0,0.00022721,2]
[349600195,1737322253351,-501.62297975,0.00022721,2]
[349600196,1737322253360,-497.32954092,0.00022721,2]
[349600199,1737322253370,-1000.0,0.00022721,2]
[349600200,1737322253383,-1000.0,0.00022721,2]
[349600202,1737322253391,-502.05270389,0.00022721,2]
[349600203,1737322253400,-500.0,0.00022721,2]
[349600204,1737322253409,-753.80078479,0.00022721,2]
[349600205,1737322253418,-1000.0,0.00022721,2]
[349600207,1737322253427,-160.20374045,0.00022721,2]
[349600209,1737322253436,-4372.52533849,0.00022728,3]
[349600211,1737322253445,-527.2,0.00022739,3]
[349600213,1737322253454,-500.0,0.00022739,3]
[349600215,1737322253463,-500.0,0.00022739,3]
[349600217,1737322253473,-500.0,0.00022739,3]
[349600219,1737322253482,-500.0,0.00022739,3]
[349600221,1737322253491,-500.0,0.00022739,3]
[349600223,1737322253501,-500.0,0.00022739,3]
[349600225,1737322253510,-511.8774134,0.00022739,3]
[349600227,1737322253519,-500.0,0.00022739,3]
[349600230,1737322253544,-413.14963891,0.00022739,3]
[349600233,1737322253561,-514.64,0.00022739,3]
[349600236,1737322253583,-500.0,0.00022739,3]
[349600240,1737322253604,-514.61,0.00022739,3]
[349600243,1737322253627,-500.0,0.00022739,3]
[349600246,1737322253648,-500.0,0.00022739,3]
[349600248,1737322253663,-500.0,0.00022739,3]
[349600251,1737322253682,-500.0,0.00022739,3]
[349600254,1737322253702,-500.0,0.00022739,3]
[349600258,1737322253724,-500.0,0.00022739,3]
[349600260,1737322253737,-500.0,0.00022739,3]
[349600263,1737322253756,-500.0,0.00022739,3]
[349600266,1737322253771,-500.0,0.00022739,3]
[349600269,1737322253788,-500.0,0.00022739,3]
[349600271,1737322253801,-500.0,0.00022739,3]
[349600273,1737322253816,-500.0,0.00022739,3]
[349600276,1737322253832,-500.0,0.00022739,3]
[349600279,1737322253846,-500.0,0.00022739,3]
[349600281,1737322253861,-500.0,0.00022739,3]
[349600284,1737322253880,-500.0,0.00022739,3]
[349600286,1737322253895,-500.0,0.00022739,3]
[349600289,1737322253911,-500.0,0.00022739,3]
[349600291,1737322253927,-500.0,0.00022739,3]
[349600294,1737322253942,-500.0,0.00022739,3]
[349600296,1737322253956,-549.89,0.00022739,3]
[349600299,1737322253974,-500.0,0.00022739,3]
[349600301,1737322253983,-500.0,0.00022739,3]
[349600303,1737322253993,-500.0,0.00022739,3]
[349600305,1737322254003,-500.0,0.00022739,3]
[349600307,1737322254013,-500.0,0.00022739,3]
[349600309,1737322254023,-500.0,0.00022739,3]
[349600311,1737322254033,-500.0,0.00022739,3]
[349600313,1737322254043,-500.0,0.00022739,2]
[349600315,1737322254053,-500.0,0.00022739,3]
[349600317,1737322254063,-500.0,0.00022739,3]
[349600319,1737322254073,-500.0,0.00022739,3]
[349600321,1737322254083,-500.0,0.00022739,3]
[349600323,1737322254094,-500.0,0.00022739,3]
[349600325,1737322254103,-521.86,0.00022739,3]
[349600327,1737322254114,-600.0,0.00022739,3]
[349600329,1737322254126,-500.0,0.00022739,3]
[349600331,1737322254136,-500.0,0.00022739,3]
[349600333,1737322254146,-1430.67,0.00022739,3]
[349600335,1737322254155,-500.0,0.00022739,3]
[349600355,1737322254325,-501.1,0.00022739,3]
[349600357,1737322254338,-500.0,0.00022739,3]
[349600359,1737322254348,-500.0,0.00022739,3]
[349600361,1737322254358,-500.0,0.00022739,3]
[349600363,1737322254369,-500.0,0.00022739,3]
[349600366,1737322254390,-500.0,0.00022739,3]
[349600368,1737322254400,-500.0,0.00022739,3]
[349600370,1737322254409,-500.0,0.00022739,3]
[349600372,1737322254418,-500.0,0.00022739,3]
[349600374,1737322254428,-500.0,0.00022739,3]
[349600376,1737322254437,-3452.47,0.00022739,3]
[349600378,1737322254446,-556.23998529,0.00022739,3]
[349600380,1737322254455,-1896.27,0.00022739,3]
[349600382,1737322254464,-382.08918817,0.00022739,3]
[349600384,1737322254473,-500.0,0.00022739,3]
[349600386,1737322254483,-383.12525568,0.00022739,3]
[349600388,1737322254493,-6775.71,0.00022739,3]
[349600390,1737322254503,-711.76,0.00022739,3]
[349600392,1737322254512,-500.0,0.00022739,3]
[349600394,1737322254521,-500.0,0.00022739,3]
[349600396,1737322254531,-500.0,0.00022739,3]
[349600398,1737322254540,-500.0,0.00022739,3]
[349600400,1737322254550,-1219.06,0.00022739,3]
[349600402,1737322254560,-500.0,0.00022739,3]
[349600404,1737322254569,-531.15,0.00022739,3]
[349600406,1737322254579,-500.0,0.00022739,3]
[349600408,1737322254589,-500.0,0.00022739,3]
[349600409,1737322254599,-500.0,0.00022739,3]
[349600410,1737322254608,-566.86,0.00022739,3]
[349600411,1737322254618,-500.0,0.00022739,3]
[349600412,1737322254630,-500.0,0.00022739,3]
[349600413,1737322254639,-500.0,0.00022739,3]
[349600414,1737322254648,-500.0,0.00022739,3]
[349600415,1737322254657,-824.53,0.00022739,3]
[349600416,1737322254666,-1046.84,0.00022739,3]
[349600417,1737322254675,-500.0,0.00022739,3]
[349600418,1737322254685,-530.1,0.00022739,3]
[349600419,1737322254694,-500.0,0.00022739,3]
[349600420,1737322254704,-500.0,0.00022739,3]
[349600421,1737322254714,-814.54,0.00022739,3]
[349600422,1737322254724,-1109.47,0.00022739,3]
[349600424,1737322254734,-500.0,0.00022739,3]
[349600426,1737322254743,-2027.2,0.00022739,3]
[349600428,1737322254753,-500.0,0.00022739,3]
[349600430,1737322254762,-500.0,0.00022739,3]
[349600432,1737322254771,-604.45,0.00022739,3]
[349600434,1737322254781,-500.0,0.00022739,3]
[349600436,1737322254790,-500.0,0.00022739,3]
[349600438,1737322254800,-732.28,0.00022739,3]
[349600440,1737322254810,-2722.97,0.00022739,3]
[349600442,1737322254819,-500.0,0.00022739,3]